fUSD/lending_fUSD_20250308
["ID","MTS","AMOUNT","RATE_DAILY","PERIOD"]
[355641445,1741421431672,-500.0,8.218e-05,2]
[355641446,1741421431682,-500.0,8.218e-05,2]
[355641447,1741421431691,-500.0,8.218e-05,2]
[355641448,1741421431701,-500.0,8.218e-05,2]
[355641449,1741421431711,-563.36646446,8.218e-05,2]
[355641450,1741421431721,-500.0,8.218e-05,2]
[355641451,1741421431730,-500.0,8.218e-05,2]
[355641452,1741421431739,-500.0,8.218e-05,2]
[355641453,1741421431749,-625.08841401,8.218e-05,2]
[355641454,1741421431759,-162.866886,8.219e-05,2]
[355641455,1741421431768,-418.96376481,8.219e-05,2]
[355641456,1741421431778,-152.545415,8.219e-05,2]
[355641457,1741421431787,-161.868547,8.219e-05,2]
[355641458,1741421431797,-151.788438,8.219e-05,2]
[355641459,1741421431807,-502.46989229,8.219e-05,2]
[355641460,1741421431816,-852.88,8.219e-05,2]
[355641461,1741421431825,-500.0,8.219e-05,2]
[355641462,1741421431835,-500.0,8.219e-05,2]
[355641463,1741421431844,-704.22,8.219e-05,2]
[355641464,1741421431853,-500.0,8.219e-05,2]
[355641465,1741421431863,-500.0,8.219e-05,2]
[355641466,1741421431872,-500.0,8.219e-05,2]
[355641467,1741421431882,-500.0,8.219e-05,2]
[355641468,1741421431892,-789.68,8.219e-05,2]
[355641469,1741421431907,-500.0,8.219e-05,2]
[355641470,1741421431916,-444.20832037,8.219e-05,2]
[355641471,1741421431925,-508.92,8.219e-05,2]
[355641472,1741421431935,-266.18887915,8.219e-05,2]
[355641473,1741421431959,-284.66112085,8.219e-05,2]
[355641475,1741421431970,-500.0,8.219e-05,2]
[355641477,1741421431980,-238.64688595,8.219e-05,2]
[355641478,1741421432007,-449.24311405,8.219e-05,2]
[355641479,1741421432017,-856.71,8.219e-05,2]
[355641480,1741421432026,-465.33497894,8.219e-05,2]
[355641481,1741421432036,-500.0,8.219e-05,2]
[355641482,1741421432046,-500.0,8.219e-05,2]
[355641483,1741421432056,-500.0,8.219e-05,2]
[355641484,1741421432066,-796.08,8.219e-05,2]
[355641485,1741421432081,-717.6,8.219e-05,2]
[355641486,1741421432092,-500.0,8.219e-05,2]
[355641487,1741421432101,-500.0,8.219e-05,2]
[355641488,1741421432113,-561.77,8.219e-05,2]
[355641489,1741421432124,-524.23,8.219e-05,2]
[355641490,1741421432133,-814.29,8.219e-05,2]
[355641491,1741421432143,-173.28914955,8.219e-05,2]
[355641493,1741421432155,-1148.04085045,8.219e-05,2]
[355641495,1741421432165,-732.81,8.219e-05,2]
[355641497,1741421432174,-532.18,8.219e-05,2]
[355641499,1741421432184,-634.61,8.219e-05,2]
[355641501,1741421432193,-858.45,8.219e-05,2]
[355641503,1741421432203,-500.0,8.219e-05,2]
[355641505,1741421432213,-500.0,8.219e-05,2]
[355641507,1741421432223,-982.14,8.219e-05,2]
[355641509,1741421432233,-500.0,8.219e-05,2]
[355641512,1741421432243,-915.58,8.219e-05,2]
[355641514,1741421432253,-502.6129454,8.219e-05,2]
[355641516,1741421432262,-500.0,8.219e-05,2]
[355641518,1741421432271,-500.0,8.219e-05,2]
[355641520,1741421432281,-770.88,8.219e-05,2]
[355641522,1741421432290,-500.0,8.219e-05,2]
[355641524,1741421432299,-1222.25,8.219e-05,2]
[355641526,1741421432309,-500.0,8.219e-05,2]
[355641528,1741421432318,-785.9,8.219e-05,2]
[355641529,1741421432327,-500.0,8.219e-05,2]
[355641530,1741421432336,-511.02718804,8.219e-05,2]
[355641531,1741421432346,-507.987984,8.219e-05,2]
[355641533,1741421432355,-500.0,8.219e-05,2]
[355641535,1741421432365,-500.0,8.219e-05,2]
[355641537,1741421432374,-662.71,8.219e-05,2]
[355641539,1741421432383,-647.3344165,8.219e-05,2]
[355641541,1741421432392,-513.99481231,8.219e-05,2]
[355641543,1741421432401,-500.0,8.219e-05,2]
[355641545,1741421432410,-510.40568889,8.219e-05,2]
[355641546,1741421432420,-500.0,8.219e-05,2]
[355641549,1741421432430,-500.0,8.219e-05,2]
[355641551,1741421432439,-564.12,8.219e-05,2]
[355641553,1741421432451,-850.86,8.219e-05,2]
[355641555,1741421432461,-500.0,8.219e-05,2]
[355641557,1741421432471,-500.0,8.219e-05,2]
[355641559,1741421432480,-500.0,8.219e-05,2]
[355641561,1741421432490,-500.0,8.219e-05,2]
[355641563,1741421432500,-505.11474053,8.219e-05,2]
[355641565,1741421432509,-500.0,8.219e-05,2]
[355641567,1741421432518,-500.0,8.219e-05,2]
[355641569,1741421432529,-500.0,8.219e-05,2]
[355641571,1741421432538,-500.0,8.219e-05,2]
[355641573,1741421432547,-492.00013696,8.219e-05,2]
[355641575,1741421432557,-500.0,8.219e-05,2]
[355641577,1741421432566,-500.0,8.219e-05,2]
[355641579,1741421432576,-500.0,8.219e-05,2]
[355641581,1741421432585,-500.0,8.219e-05,2]
[355641583,1741421432594,-634.54,8.219e-05,2]
[355641585,1741421432604,-500.0,8.219e-05,2]
[355641587,1741421432613,-565.47,8.219e-05,2]
[355641589,1741421432623,-500.0,8.219e-05,2]
[355641591,1741421432632,-879.41,8.219e-05,2]
[355641593,1741421432642,-500.0,8.219e-05,2]
[355641594,1741421432652,-500.0,8.219e-05,2]
[355641595,1741421432661,-500.0,8.219e-05,2]
[355641596,1741421432670,-500.0,8.219e-05,2]
[355641597,1741421432680,-501.55729622,8.219e-05,2]
[355641598,1741421432689,-500.0,8.219e-05,2]
[355641599,1741421432699,-640.74,8.219e-05,2]
[355641600,1741421432709,-500.0,8.219e-05,2]
[355641601,1741421432719,-1008.41,8.219e-05,2]
[355641602,1741421432728,-440.4384218,8.219e-05,2]
[355641603,1741421432739,-500.0,8.219e-05,2]
[355641604,1741421432749,-308.528107,8.219e-05,2]
[355641605,1741421432759,-714.08,8.219e-05,2]
[355641606,1741421432769,-501.53363928,8.219e-05,2]
[355641607,1741421432779,-1008.28,8.219e-05,2]
[355641608,1741421432789,-500.0,8.219e-05,2]
[355641609,1741421432798,-500.0,8.219e-05,2]
[355641610,1741421432808,-500.0,8.219e-05,2]
[355641611,1741421432818,-505.34027584,8.219e-05,2]
[355641612,1741421432827,-741.99,8.219e-05,2]
[355641613,1741421432837,-500.0,8.219e-05,2]
[355641614,1741421432847,-500.0,8.219e-05,2]
[355641615,1741421432856,-500.0,8.219e-05,2]
[355641616,1741421432866,-1329.09,8.219e-05,2]
[355641617,1741421432875,-186.79775661,8.219e-05,2]
[355641618,1741421432885,-500.0,8.219e-05,2]
[355641619,1741421432894,-500.0,8.219e-05,2]
[355641620,1741421432904,-500.0,8.219e-05,2]
[355641621,1741421432914,-500.0,8.219e-05,2]
[355641622,1741421432923,-501.87009548,8.219e-05,2]
[355641623,1741421432934,-500.0,8.219e-05,2]
[355641624,1741421432943,-886.35,8.219e-05,2]
[355641625,1741421432953,-500.0,8.219e-05,2]
[355641626,1741421432962,-500.0,8.219e-05,2]
[355641627,1741421432972,-515.92920538,8.219e-05,2]
[355641628,1741421432982,-500.0,8.219e-05,2]
[355641629,1741421432991,-632.34,8.219e-05,2]
[355641630,1741421433002,-635.24,8.219e-05,2]
[355641631,1741421433012,-500.0,8.219e-05,2]
[355641632,1741421433025,-500.0,8.219e-05,2]
[355641633,1741421433036,-500.0,8.219e-05,2]
[355641634,1741421433046,-500.0,8.219e-05,2]
[355641635,1741421433055,-353.76788296,8.219e-05,2]
[355641636,1741421433066,-666.22,8.219e-05,2]
[355641637,1741421433079,-500.0,8.219e-05,2]
[355641638,1741421433089,-500.0,8.219e-05,2]
[355641639,1741421433099,-541.89,8.219e-05,2]
[355641640,1741421433110,-1091.57,8.219e-05,2]
[355641641,1741421433120,-500.0,8.219e-05,2]
[355641642,1741421433130,-1116.15,8.219e-05,2]
[355641643,1741421433139,-500.0,8.219e-05,2]
[355641644,1741421433152,-500.0,8.219e-05,2]
[355641645,1741421433162,-759.52,8.219e-05,2]
[355641646,1741421433172,-500.0,8.219e-05,2]
[355641647,1741421433182,-500.0,8.219e-05,2]
[355641648,1741421433192,-726.05,8.219e-05,2]
[355641649,1741421433203,-502.86788279,8.219e-05,2]
[355641650,1741421433213,-561.44,8.219e-05,2]
[355641651,1741421433223,-1238.29,8.219e-05,2]
[355641652,1741421433233,-858.87,8.219e-05,2]
[355641653,1741421433244,-1607.45,8.219e-05,2]
[355641654,1741421433254,-508.4498912,8.219e-05,2]
[355641655,1741421433264,-211.97880375,8.219e-05,2]
[355641656,1741421433275,-500.0,8.219e-05,2]
[355641657,1741421433286,-500.0,8.219e-05,2]
[355641658,1741421433296,-500.0,8.219e-05,2]
[355641659,1741421433306,-500.0,8.219e-05,2]
[355641660,1741421433315,-935.0,8.219e-05,2]
[355641661,1741421433325,-500.0,8.219e-05,2]
[355641662,1741421433335,-526.28,8.219e-05,2]
[355641663,1741421433344,-500.0,8.219e-05,2]
[355641664,1741421433353,-500.0,8.219e-05,2]
[355641665,1741421433363,-500.0,8.219e-05,2]
[355641666,1741421433372,-500.0,8.219e-05,2]
[355641667,1741421433382,-729.75,8.219e-05,2]
[355641668,1741421433392,-500.0,8.219e-05,2]
[355641669,1741421433401,-651.55,8.219e-05,2]
[355641670,1741421433411,-500.0,8.219e-05,2]
[355641671,1741421433420,-1378.12,8.219e-05,2]
[355641672,1741421433430,-500.0,8.219e-05,2]
[355641673,1741421433441,-955.91,8.219e-05,2]
[355641674,1741421433450,-564.82,8.219e-05,2]
[355641675,1741421433460,-500.0,8.219e-05,2]
[355641676,1741421433471,-523.65,8.219e-05,2]
[355641677,1741421433480,-500.0,8.219e-05,2]
[355641678,1741421433490,-500.0,8.219e-05,2]
[355641679,1741421433500,-500.0,8.219e-05,2]
[355641680,1741421433510,-500.0,8.219e-05,2]
[355641681,1741421433519,-1064.72,8.219e-05,2]
[355641682,1741421433529,-658.82,8.219e-05,2]
[355641683,1741421433539,-500.0,8.219e-05,2]
[355641684,1741421433548,-502.93559593,8.219e-05,2]
[355641685,1741421433558,-553.98,8.219e-05,2]
[355641686,1741421433567,-900.57,8.219e-05,2]
[355641687,1741421433577,-500.0,8.219e-05,2]
[355641688,1741421433587,-500.0,8.219e-05,2]
[355641689,1741421433596,-500.0,8.219e-05,2]
[355641690,1741421433606,-500.0,8.219e-05,2]
[355641691,1741421433615,-500.0,8.219e-05,2]
[355641692,1741421433626,-332.70697929,8.219e-05,2]
[355641693,1741421433636,-500.0,8.219e-05,2]
[355641694,1741421433647,-735.74,8.219e-05,2]
[355641695,1741421433656,-500.0,8.219e-05,2]
[355641696,1741421433666,-882.49,8.219e-05,2]
[355641697,1741421433676,-500.0,8.219e-05,2]
[355641698,1741421433685,-694.77,8.219e-05,2]
[355641699,1741421433695,-501.49221747,8.219e-05,2]
[355641700,1741421433704,-500.0,8.219e-05,2]
[355641701,1741421433715,-500.0,8.219e-05,2]
[355641702,1741421433725,-1399.64,8.219e-05,2]
[355641703,1741421433734,-642.19,8.219e-05,2]
[355641704,1741421433745,-500.0,8.219e-05,2]
[355641705,1741421433754,-500.0,8.219e-05,2]
[355641706,1741421433764,-500.0,8.219e-05,2]
[355641707,1741421433775,-590.43,8.219e-05,2]
[355641708,1741421433784,-500.0,8.219e-05,2]
[355641709,1741421433794,-500.0,8.219e-05,2]
[355641710,1741421433804,-1112.82,8.219e-05,2]
[355641711,1741421433814,-834.36,8.219e-05,2]
[355641712,1741421433823,-500.0,8.219e-05,2]
[355641713,1741421433833,-500.0,8.219e-05,2]
[355641714,1741421433843,-500.0,8.219e-05,2]
[355641715,1741421433852,-1195.06,8.219e-05,2]
[355641716,1741421433862,-500.0,8.219e-05,2]
[355641717,1741421433871,-501.31796272,8.219e-05,2]
[355641718,1741421433881,-962.47,8.219e-05,2]
[355641719,1741421433891,-500.0,8.219e-05,2]
[355641720,1741421433901,-500.0,8.219e-05,2]
[355641721,1741421433911,-1677.33,8.219e-05,2]
[355641722,1741421433920,-701.45,8.219e-05,2]
[355641723,1741421433931,-500.0,8.219e-05,2]
[355641724,1741421433940,-829.97,8.219e-05,2]
[355641725,1741421433950,-827.46,8.219e-05,2]
[355641726,1741421433961,-500.0,8.219e-05,2]
[355641727,1741421433970,-500.0,8.219e-05,2]
[355641728,1741421433981,-500.0,8.219e-05,2]
[355641729,1741421433990,-756.88,8.219e-05,2]
[355641730,1741421433999,-551.84435973,8.219e-05,2]
[355641731,1741421434010,-950.35,8.219e-05,2]
[355641732,1741421434019,-501.36384016,8.219e-05,2]
[355641733,1741421434030,-500.0,8.219e-05,2]
[355641734,1741421434040,-500.0,8.219e-05,2]
[355641735,1741421434049,-719.31,8.219e-05,2]
[355641736,1741421434060,-500.0,8.219e-05,2]
[355641737,1741421434074,-509.33296802,8.219e-05,2]
[355641738,1741421434084,-979.66,8.219e-05,2]
[355641739,1741421434093,-784.91,8.219e-05,2]
[355641740,1741421434103,-500.0,8.219e-05,2]
[355641741,1741421434114,-500.0,8.219e-05,2]
[355641742,1741421434123,-500.0,8.219e-05,2]
[355641743,1741421434133,-780.19,8.219e-05,2]
[355641744,1741421434143,-500.0,8.219e-05,2]
[355641745,1741421434153,-500.0,8.219e-05,2]
[355641746,1741421434163,-500.0,8.219e-05,2]
[355641747,1741421434173,-1589.23,8.219e-05,2]
[355641748,1741421434183,-369.84979319,8.219e-05,2]
[355641749,1741421434194,-749.15,8.219e-05,2]
[355641750,1741421434204,-500.0,8.219e-05,2]
[355641751,1741421434214,-500.0,8.219e-05,2]
[355641752,1741421434224,-642.91,8.219e-05,2]
[355641753,1741421434233,-1182.37,8.219e-05,2]
[355641754,1741421434243,-1044.06,8.219e-05,2]
[355641755,1741421434253,-1093.1,8.219e-05,2]
[355641756,1741421434264,-500.0,8.219e-05,2]
[355641757,1741421434273,-2603.86,8.219e-05,2]
[355641758,1741421434283,-533.85262723,8.219e-05,2]
[355641759,1741421434293,-500.0,8.219e-05,2]
[355641760,1741421434302,-513.09652697,8.219e-05,2]
[355641761,1741421434311,-1450.51,8.219e-05,2]
[355641762,1741421434321,-578.2,8.219e-05,2]
[355641763,1741421434330,-1001.82,8.219e-05,2]
[355641764,1741421434339,-500.0,8.219e-05,2]
[355641765,1741421434349,-500.0,8.219e-05,2]
[355641766,1741421434358,-500.0,8.219e-05,2]
[355641767,1741421434367,-500.0,8.219e-05,2]
[355641768,1741421434377,-670.38,8.219e-05,2]
[355641769,1741421434386,-500.0,8.219e-05,2]
[355641770,1741421434397,-1123.54,8.219e-05,2]
[355641771,1741421434406,-500.0,8.219e-05,2]
[355641772,1741421434415,-755.61,8.219e-05,2]
[355641773,1741421434425,-1139.34,8.219e-05,2]
[355641774,1741421434434,-1228.3,8.219e-05,2]
[355641775,1741421434444,-504.03916961,8.219e-05,2]
[355641776,1741421434453,-500.0,8.219e-05,2]
[355641777,1741421434462,-602.92,8.219e-05,2]
[355641778,1741421434472,-503.26169479,8.219e-05,2]
[355641779,1741421434481,-500.0,8.219e-05,2]
[355641780,1741421434490,-500.0,8.219e-05,2]
[355641781,1741421434500,-528.28,8.219e-05,2]
[355641782,1741421434510,-500.0,8.219e-05,2]
[355641783,1741421434519,-536.81,8.219e-05,2]
[355641784,1741421434528,-624.96370416,8.219e-05,2]
[355641785,1741421434538,-500.0,8.219e-05,2]
[355641786,1741421434548,-897.35,8.219e-05,2]
[355641787,1741421434557,-500.0,8.219e-05,2]
[355641788,1741421434567,-500.0,8.219e-05,2]
[355641789,1741421434576,-500.0,8.219e-05,2]
[355641790,1741421434585,-560.1,8.219e-05,2]
[355641791,1741421434594,-500.0,8.219e-05,2]
[355641792,1741421434603,-500.0,8.219e-05,2]
[355641793,1741421434613,-500.0,8.219e-05,2]
[355641794,1741421434623,-500.0,8.219e-05,2]
[355641795,1741421434633,-531.7,8.219e-05,2]
[355641796,1741421434643,-1649.4,8.219e-05,2]
[355641797,1741421434653,-627.69,8.219e-05,2]
[355641798,1741421434663,-500.0,8.219e-05,2]
[355641799,1741421434673,-500.0,8.219e-05,2]
[355641800,1741421434682,-500.0,8.219e-05,2]
[355641801,1741421434692,-512.25405869,8.219e-05,2]
[355641802,1741421434701,-500.0,8.219e-05,2]
[355641803,1741421434710,-500.0,8.219e-05,2]
[355641804,1741421434720,-500.0,8.219e-05,2]
[355641805,1741421434729,-858.4,8.219e-05,2]
[355641806,1741421434739,-500.0,8.219e-05,2]
[355641807,1741421434748,-630.07,8.219e-05,2]
[355641808,1741421434758,-539.71,8.219e-05,2]
[355641809,1741421434767,-500.0,8.219e-05,2]
[355641810,1741421434777,-184.26672978,8.219e-05,2]
[355641811,1741421434974,-541.48,8.219e-05,2]
[355641812,1741421434984,-500.0,8.219e-05,2]
[355641813,1741421434994,-500.0,8.219e-05,2]
[355641814,1741421435004,-511.49448544,8.219e-05,2]
[355641815,1741421435014,-326.32774715,8.219e-05,2]
[355641816,1741421435023,-500.0,8.219e-05,2]
[355641817,1741421435033,-501.46608816,8.219e-05,2]
[355641818,1741421435042,-617.11,8.219e-05,2]
[355641819,1741421435052,-500.0,8.219e-05,2]
[355641820,1741421435062,-500.0,8.219e-05,2]
[355641821,1741421435073,-500.0,8.219e-05,2]
[355641822,1741421435085,-638.76,8.219e-05,2]
[355641823,1741421435094,-500.0,8.219e-05,2]
[355641824,1741421435104,-1272.95,8.219e-05,2]
[355641825,1741421435114,-700.92,8.219e-05,2]
[355641826,1741421435124,-518.65921239,8.219e-05,2]
[355641827,1741421435134,-500.0,8.219e-05,2]
[355641828,1741421435143,-500.0,8.219e-05,2]
[355641829,1741421435153,-500.0,8.219e-05,2]
[355641830,1741421435163,-656.62,8.219e-05,2]
[355641831,1741421435173,-1432.6,8.219e-05,2]
[355641832,1741421435182,-500.0,8.219e-05,2]
[355641833,1741421435191,-500.0,8.219e-05,2]
[355641834,1741421435201,-992.4,8.219e-05,2]
[355641835,1741421435211,-500.0,8.219e-05,2]
[355641836,1741421435220,-500.0,8.219e-05,2]
[355641837,1741421435229,-500.0,8.219e-05,2]
[355641838,1741421435239,-500.0,8.219e-05,2]
[355641839,1741421435250,-500.00399997,8.219e-05,2]
[355641840,1741421435259,-500.0,8.219e-05,2]
[355641841,1741421435269,-861.68,8.219e-05,2]
[355641842,1741421435278,-702.8,8.219e-05,2]
[355641843,1741421435288,-848.86,8.219e-05,2]
[355641844,1741421435299,-1575.58,8.219e-05,2]
[355641845,1741421435308,-605.12077336,8.219e-05,2]
[355641846,1741421435318,-501.71942783,8.219e-05,2]
[355641847,1741421435327,-594.18996185,8.219e-05,2]
[355641848,1741421435336,-500.0,8.219e-05,2]
[355641849,1741421435346,-553.25,8.219e-05,2]
[355641850,1741421435356,-500.0,8.219e-05,2]
[355641851,1741421435365,-500.0,8.219e-05,2]
[355641852,1741421435376,-1308.54,8.219e-05,2]
[355641853,1741421435385,-500.0,8.219e-05,2]
[355641854,1741421435395,-500.0,8.219e-05,2]
[355641855,1741421435404,-500.0,8.219e-05,2]
[355641856,1741421435414,-1080.38,8.219e-05,2]
[355641857,1741421435423,-500.0,8.219e-05,2]
[355641858,1741421435432,-513.61,8.219e-05,2]
[355641859,1741421435441,-503.31161655,8.219e-05,2]
[355641860,1741421435450,-609.48,8.219e-05,2]
[355641861,1741421435461,-192.517258,8.219e-05,2]
[355641862,1741421435470,-500.0,8.219e-05,2]
[355641863,1741421435480,-1480.98,8.219e-05,2]
[355641864,1741421435490,-689.84,8.219e-05,2]
[355641865,1741421435500,-1484.12,8.219e-05,2]
[355641866,1741421435510,-1497.61,8.219e-05,2]
[355641867,1741421435519,-616.21,8.219e-05,2]
[355641868,1741421435529,-500.0,8.219e-05,2]
[355641869,1741421435538,-1578.12,8.219e-05,2]
[355641870,1741421435547,-500.0,8.219e-05,2]
[355641871,1741421435557,-500.0,8.219e-05,2]
[355641872,1741421435566,-500.0,8.219e-05,2]
[355641873,1741421435575,-500.0,8.219e-05,2]
[355641874,1741421435585,-929.29,8.219e-05,2]
[355641875,1741421435594,-211.38778591,8.219e-05,2]
[355641876,1741421435604,-500.0,8.219e-05,2]
[355641877,1741421435614,-500.0,8.219e-05,2]
[355641878,1741421435623,-345.42472593,8.219e-05,2]
[355641879,1741421435632,-1552.07,8.219e-05,2]
[355641880,1741421435643,-500.0,8.219e-05,2]
[355641881,1741421435653,-1006.49,8.219e-05,2]
[355641882,1741421435662,-500.0,8.219e-05,2]
[355641883,1741421435671,-500.0,8.219e-05,2]
[355641884,1741421435681,-505.14668258,8.219e-05,2]
[355641885,1741421435690,-500.0,8.219e-05,2]
[355641886,1741421435700,-615.81,8.219e-05,2]
[355641887,1741421435710,-500.0,8.219e-05,2]
[355641888,1741421435719,-500.0,8.219e-05,2]
[355641889,1741421435729,-500.0,8.219e-05,2]
[355641890,1741421435738,-1547.32,8.219e-05,2]
[355641891,1741421435748,-500.0,8.219e-05,2]
[355641892,1741421435757,-1242.64,8.219e-05,2]
[355641893,1741421435767,-500.0,8.219e-05,2]
[355641894,1741421435776,-597.45,8.219e-05,2]
[355641895,1741421435786,-500.0,8.219e-05,2]
[355641896,1741421435795,-707.02,8.219e-05,2]
[355641897,1741421435805,-500.0,8.219e-05,2]
[355641898,1741421435816,-1364.5,8.219e-05,2]
[355641899,1741421435825,-500.0,8.219e-05,2]
[355641900,1741421435835,-500.0,8.219e-05,2]
[355641901,1741421435844,-500.0,8.219e-05,2]
[355641902,1741421435854,-962.29,8.219e-05,2]
[355641903,1741421435863,-277.96910104,8.219e-05,2]
[355641904,1741421435873,-799.98,8.219e-05,2]
[355641905,1741421435884,-500.0,8.219e-05,2]
[355641906,1741421435893,-854.02,8.219e-05,2]
[355641907,1741421435903,-500.0,8.219e-05,2]
[355641908,1741421435914,-500.0,8.219e-05,2]
[355641909,1741421435924,-500.0,8.219e-05,2]
[355641910,1741421435934,-537.98394118,8.219e-05,2]
[355641911,1741421435945,-507.85599243,8.219e-05,2]
[355641912,1741421435955,-1981.63,8.219e-05,2]
[355641913,1741421435964,-9612.64,8.219e-05,2]
[355641914,1741421435974,-1680.14,8.219e-05,2]
[355641915,1741421435984,-832.38,8.219e-05,2]
[355641916,1741421435994,-502.20047687,8.219e-05,2]
[355641917,1741421436004,-1462.21,8.219e-05,2]
[355641918,1741421436014,-5600.98,8.219e-05,2]
[355641919,1741421436023,-2088.21,8.219e-05,2]
[355641920,1741421436033,-500.0,8.219e-05,2]
[355641921,1741421436043,-601.61743431,8.219e-05,2]
[355641922,1741421436053,-573.21,8.219e-05,2]
[355641923,1741421436063,-1470.38,8.219e-05,2]
[355641924,1741421436074,-17807.7879897,8.219e-05,2]
[355641925,1741421436102,-24878.4220103,8.219e-05,2]
[355641926,1741421436112,-2671.35,8.219e-05,2]
[355641927,1741421436123,-743.02,8.219e-05,2]
[355641928,1741421436132,-500.0,8.219e-05,2]
[355641929,1741421436141,-500.0,8.219e-05,2]
[355641930,1741421436152,-500.0,8.219e-05,2]
[355641931,1741421436161,-542.48,8.219e-05,2]
[355641932,1741421436171,-500.0,8.219e-05,2]
[355641933,1741421436180,-1534.04,8.219e-05,2]
[355641934,1741421436189,-500.0,8.219e-05,2]
[355641935,1741421436199,-570.69763592,8.219e-05,2]
[355641936,1741421436208,-811.34,8.219e-05,2]
[355641937,1741421436218,-500.0,8.219e-05,2]
[355641938,1741421436228,-607.86594497,8.219e-05,2]
[355641939,1741421436239,-2431.43,8.219e-05,2]
[355641940,1741421436249,-500.0,8.219e-05,2]
[355641941,1741421436259,-500.0,8.219e-05,2]
[355641942,1741421436270,-1396.84,8.219e-05,2]
[355641943,1741421436280,-571.46,8.219e-05,2]
[355641944,1741421436290,-1449.94,8.219e-05,2]
[355641945,1741421436298,-500.0,8.219e-05,2]
[355641946,1741421436308,-812.17,8.219e-05,2]
[355641947,1741421436317,-1459.32,8.219e-05,2]
[355641948,1741421436337,-521.95003718,8.219e-05,2]
[355641949,1741421436349,-2048.17,8.219e-05,2]
[355641950,1741421436359,-687.32,8.219e-05,2]
[355641951,1741421436369,-1500.1,8.219e-05,2]
[355641952,1741421436380,-500.0,8.219e-05,2]
[355641953,1741421436389,-7116.8,8.219e-05,2]
[355641954,1741421436400,-2217.08,8.219e-05,2]
[355641955,1741421436409,-500.0,8.219e-05,2]
[355641956,1741421436420,-501.59108993,8.219e-05,2]
[355641957,1741421436429,-4642.18,8.219e-05,2]
[355641958,1741421436439,-3260.72,8.219e-05,2]
[355641959,1741421436449,-500.0,8.219e-05,2]
[355641960,1741421436459,-475.82132969,8.219e-05,2]
[355641961,1741421436469,-506.12700655,8.219e-05,2]
[355641962,1741421436479,-500.0,8.219e-05,2]
[355641963,1741421436489,-30941.28,8.219e-05,2]
[355641964,1741421436499,-926.73,8.219e-05,2]
[355641965,1741421436510,-841.95,8.219e-05,2]
[355641966,1741421436519,-4274.5,8.219e-05,2]
[355641967,1741421436529,-639.06,8.219e-05,2]
[355641968,1741421436539,-1957.87789922,8.219e-05,2]
[355641969,1741421436592,-228.86210078,8.219e-05,2]
[355641970,1741421436602,-279.35031995,8.219e-05,2]
[355641971,1741421436634,-1209.496,8.219e-05,2]
[355641980,1741421438598,-6619.16368005,8.219e-05,2]
[355641981,1741421438608,-2491.44,8.219e-05,2]
[355641982,1741421438617,-579.44083936,8.219e-05,2]
[355641983,1741421438626,-500.0,8.219e-05,2]
[355641984,1741421438637,-500.0,8.219e-05,2]
[355641985,1741421438646,-768.92,8.219e-05,2]
[355641986,1741421438655,-500.0,8.219e-05,2]
[355641987,1741421438664,-944.65,8.219e-05,2]
[355641988,1741421438674,-718.63,8.219e-05,2]
[355641989,1741421438683,-1293.71,8.219e-05,2]
[355641990,1741421438693,-500.0,8.219e-05,2]
[355641991,1741421438703,-3415.49,8.219e-05,2]
[355641992,1741421438712,-3205.45,8.219e-05,2]
[355641993,1741421438722,-1182.1,8.219e-05,2]
[355641994,1741421438731,-500.0,8.219e-05,2]
[355641995,1741421438741,-475.44044458,8.219e-05,2]
[355641996,1741421438751,-150.99,8.219e-05,2]
[355641997,1741421438761,-500.0,8.219e-05,2]
[355641998,1741421438771,-500.0,8.219e-05,2]
[355641999,1741421438780,-500.0,8.219e-05,2]
[355642000,1741421438790,-299.99,8.219e-05,2]
[355642001,1741421438800,-500.0,8.219e-05,2]
[355642002,1741421438810,-1237.21,8.219e-05,2]
[355642003,1741421438819,-500.0,8.219e-05,2]
[355642004,1741421438828,-1152.48,8.219e-05,2]